[Event "Titled Tuesday Blitz January 31 Early 2023"]
[White "Levitan, Caleb Levi"]
[Black "Petukhov, Dmitry"]
[WhiteFideId "14332620"]
[BlackFideId "4142748"]
[WhiteElo "2129"]
[BlackElo "2350"]
[Result "1-0"]
[Round "06"]
[TimeControl "180+2"]
[Date "2023.01.31"]
[WhiteClock "0:00:10"]
[BlackClock "0:01:09"]

1. e4 {[%clk 0:03:00]}  c5 {[%clk 0:02:59]} 2. Nf3 {[%clk 0:02:59]}  d6 {[%clk 0:02:59]} 3. d4 {[%clk 0:02:57]}  cxd4 {[%clk 0:03:00]} 4. Nxd4 {[%clk 0:02:58]}  Nf6 {[%clk 0:03:00]} 5. Nc3 {[%clk 0:02:58]}  Nc6 {[%clk 0:03:00]} 6. Bc4 {[%clk 0:02:55]}  e5 {[%clk 0:03:00]} 7. Nde2 {[%clk 0:02:31]}  Be6 {[%clk 0:02:59]} 8. Bb3 {[%clk 0:02:27]}  Be7 {[%clk 0:02:58]} 9. Bg5 {[%clk 0:02:26]}  O-O {[%clk 0:02:58]} 10. Bxf6 {[%clk 0:02:21]}  Bxf6 {[%clk 0:02:58]} 11. O-O {[%clk 0:02:21]}  Bg5 {[%clk 0:02:48]} 12. Nd5 {[%clk 0:02:18]}  Ne7 {[%clk 0:02:45]} 13. Nec3 {[%clk 0:02:16]}  Rc8 {[%clk 0:02:43]} 14. Qd3 {[%clk 0:02:13]}  Kh8 {[%clk 0:02:41]} 15. Rad1 {[%clk 0:02:08]}  f5 {[%clk 0:02:41]} 16. Nxe7 {[%clk 0:02:05]}  Qxe7 {[%clk 0:02:41]} 17. Bxe6 {[%clk 0:01:56]}  Qxe6 {[%clk 0:02:38]} 18. exf5 {[%clk 0:01:53]}  Rxf5 {[%clk 0:02:20]} 19. Qxd6 {[%clk 0:01:53]}  Qxd6 {[%clk 0:02:19]} 20. Rxd6 {[%clk 0:01:51]}  e4 {[%clk 0:02:18]} 21. Nxe4 {[%clk 0:01:48]}  h6 {[%clk 0:02:12]} 22. Nxg5 {[%clk 0:01:46]}  Rxg5 {[%clk 0:02:11]} 23. c3 {[%clk 0:01:46]}  Rb5 {[%clk 0:02:11]} 24. Rd2 {[%clk 0:01:43]}  a5 {[%clk 0:02:11]} 25. Rfd1 {[%clk 0:01:42]}  Kh7 {[%clk 0:02:10]} 26. Kf1 {[%clk 0:01:39]}  a4 {[%clk 0:02:10]} 27. a3 {[%clk 0:01:35]}  Rc6 {[%clk 0:02:11]} 28. Re1 {[%clk 0:01:20]}  Rcb6 {[%clk 0:02:10]} 29. Ree2 {[%clk 0:01:18]}  Rc6 {[%clk 0:02:07]} 30. f3 {[%clk 0:01:17]}  Rcb6 {[%clk 0:02:07]} 31. Kf2 {[%clk 0:01:16]}  Rc6 {[%clk 0:02:07]} 32. h4 {[%clk 0:01:05]}  h5 {[%clk 0:02:05]} 33. Kg3 {[%clk 0:01:04]}  Kh6 {[%clk 0:02:03]} 34. Re4 {[%clk 0:00:55]}  Rg6+ {[%clk 0:02:01]} 35. Kh3 {[%clk 0:00:52]}  Ra6 {[%clk 0:01:54]} 36. Rb4 {[%clk 0:00:49]}  Rxb4 {[%clk 0:01:54]} 37. cxb4 {[%clk 0:00:49]}  Rc6 {[%clk 0:01:52]} 38. Rd7 {[%clk 0:00:47]}  b6 {[%clk 0:01:49]} 39. Ra7 {[%clk 0:00:44]}  Rc2 {[%clk 0:01:39]} 40. Rxa4 {[%clk 0:00:40]}  Rxb2 {[%clk 0:01:40]} 41. Ra6 {[%clk 0:00:40]}  g6 {[%clk 0:01:38]} 42. Rxb6 {[%clk 0:00:40]}  Rb3 {[%clk 0:01:38]} 43. a4 {[%clk 0:00:40]}  Kh7 {[%clk 0:01:35]} 44. a5 {[%clk 0:00:40]}  Ra3 {[%clk 0:01:35]} 45. a6 {[%clk 0:00:37]}  Kh6 {[%clk 0:01:36]} 46. b5 {[%clk 0:00:37]}  Ra1 {[%clk 0:01:35]} 47. Rb7 {[%clk 0:00:35]}  g5 {[%clk 0:01:34]} 48. hxg5+ {[%clk 0:00:32]}  Kxg5 {[%clk 0:01:33]} 49. b6 {[%clk 0:00:25]}  h4 {[%clk 0:01:31]} 50. Kh2 {[%clk 0:00:18]}  Rxa6 {[%clk 0:01:31]} 51. Rg7+ {[%clk 0:00:14]}  Kh6 {[%clk 0:01:31]} 52. Rb7 {[%clk 0:00:14]}  Kg5 {[%clk 0:01:29]} 53. Rb8 {[%clk 0:00:14]}  Kh6 {[%clk 0:01:28]} 54. Kh3 {[%clk 0:00:14]}  Kg7 {[%clk 0:01:29]} 55. Kxh4 {[%clk 0:00:13]}  Ra2 {[%clk 0:01:27]} 56. g4 {[%clk 0:00:14]}  Rf2 {[%clk 0:01:26]} 57. b7 {[%clk 0:00:13]}  Rb2 {[%clk 0:01:27]} 58. f4 {[%clk 0:00:13]}  Kh7 {[%clk 0:01:25]} 59. f5 {[%clk 0:00:13]}  Rb6 {[%clk 0:01:24]} 60. Kg5 {[%clk 0:00:13]}  Rb5 {[%clk 0:01:22]} 61. Kh5 {[%clk 0:00:12]}  Kg7 {[%clk 0:01:21]} 62. g5 {[%clk 0:00:12]}  Kh7 {[%clk 0:01:19]} 63. g6+ {[%clk 0:00:12]}  Kg7 {[%clk 0:01:18]} 64. Kg5 {[%clk 0:00:12]}  Rc5 {[%clk 0:01:09]} 65. Rg8+ {[%clk 0:00:11]}  Kxg8 {[%clk 0:01:10]} 66. b8=Q+ {[%clk 0:00:11]}  Kg7 {[%clk 0:01:09]} 67. Qa7+ {[%clk 0:00:11]}  Kh8 {[%clk 0:01:09]} 68. Qh7# {[%clk 0:00:10]} 1-0


[Site "https://www.chess.com"]

[Event "Titled Tuesday Blitz January 31 Early 2023"]
[White "Santos Flores, Alberto"]
[Black "Kalajzic, Ivan"]
[WhiteFideId "3601234"]
[BlackFideId "14506378"]
[WhiteElo "2164"]
[BlackElo "2062"]
[Result "1-0"]
[Round "06"]
[TimeControl "180+2"]
[Date "2023.01.31"]
[WhiteClock "0:00:20"]
[BlackClock "0:00:17"]

1. e4 {[%clk 0:03:00]}  g6 {[%clk 0:02:58]} 2. d4 {[%clk 0:03:00]}  Bg7 {[%clk 0:02:58]} 3. Nc3 {[%clk 0:02:59]}  d6 {[%clk 0:02:58]} 4. Be3 {[%clk 0:02:57]}  a6 {[%clk 0:02:58]} 5. Nf3 {[%clk 0:02:56]}  b5 {[%clk 0:02:58]} 6. Bd3 {[%clk 0:02:55]}  Bb7 {[%clk 0:02:57]} 7. Qd2 {[%clk 0:02:55]}  Nd7 {[%clk 0:02:57]} 8. d5 {[%clk 0:02:56]}  Ngf6 {[%clk 0:02:53]} 9. Nd4 {[%clk 0:02:56]}  O-O {[%clk 0:02:50]} 10. f3 {[%clk 0:02:56]}  Ne5 {[%clk 0:02:50]} 11. h4 {[%clk 0:02:53]}  c5 {[%clk 0:02:48]} 12. dxc6 {[%clk 0:02:53]}  Nxc6 {[%clk 0:02:48]} 13. h5 {[%clk 0:02:51]}  Nxd4 {[%clk 0:02:34]} 14. Bxd4 {[%clk 0:02:51]}  e5 {[%clk 0:02:35]} 15. Be3 {[%clk 0:02:51]}  d5 {[%clk 0:02:35]} 16. exd5 {[%clk 0:02:50]}  Nxd5 {[%clk 0:02:35]} 17. Nxd5 {[%clk 0:02:50]}  Qxd5 {[%clk 0:02:30]} 18. Bh6 {[%clk 0:02:44]}  e4 {[%clk 0:01:57]} 19. hxg6 {[%clk 0:02:23]}  fxg6 {[%clk 0:01:33]} 20. Bxg7 {[%clk 0:02:21]}  exd3 {[%clk 0:01:23]} 21. Bxf8 {[%clk 0:02:20]}  Qe5+ {[%clk 0:01:14]} 22. Kf1 {[%clk 0:02:13]}  Rxf8 {[%clk 0:01:05]} 23. Qxd3 {[%clk 0:01:56]}  Be4 {[%clk 0:00:55]} 24. Qe2 {[%clk 0:01:26]}  Qxb2 {[%clk 0:00:48]} 25. Re1 {[%clk 0:01:24]}  Bd5 {[%clk 0:00:49]} 26. Kg1 {[%clk 0:01:17]}  Qd4+ {[%clk 0:00:48]} 27. Qf2 {[%clk 0:01:17]}  Qxf2+ {[%clk 0:00:48]} 28. Kxf2 {[%clk 0:01:17]}  Bxa2 {[%clk 0:00:48]} 29. Ra1 {[%clk 0:01:17]}  Bc4 {[%clk 0:00:45]} 30. Rxa6 {[%clk 0:01:17]}  Rd8 {[%clk 0:00:45]} 31. Rc1 {[%clk 0:00:59]}  Rd2+ {[%clk 0:00:43]} 32. Kg3 {[%clk 0:01:00]}  Kg7 {[%clk 0:00:41]} 33. c3 {[%clk 0:00:58]}  h5 {[%clk 0:00:40]} 34. Raa1 {[%clk 0:00:34]}  h4+ {[%clk 0:00:40]} 35. Kh2 {[%clk 0:00:34]}  Be6 {[%clk 0:00:33]} 36. Rd1 {[%clk 0:00:34]}  Rc2 {[%clk 0:00:33]} 37. Rac1 {[%clk 0:00:34]}  Rb2 {[%clk 0:00:33]} 38. Rb1 {[%clk 0:00:35]}  Rc2 {[%clk 0:00:33]} 39. Rxb5 {[%clk 0:00:32]}  h3 {[%clk 0:00:33]} 40. Rg1 {[%clk 0:00:32]}  Rxc3 {[%clk 0:00:29]} 41. gxh3 {[%clk 0:00:26]}  Rxf3 {[%clk 0:00:27]} 42. Rg3 {[%clk 0:00:26]}  Rf2+ {[%clk 0:00:27]} 43. Kg1 {[%clk 0:00:26]}  Ra2 {[%clk 0:00:26]} 44. Rbg5 {[%clk 0:00:26]}  Bf7 {[%clk 0:00:25]} 45. h4 {[%clk 0:00:27]}  Kf6 {[%clk 0:00:25]} 46. R5g4 {[%clk 0:00:26]}  Rb2 {[%clk 0:00:23]} 47. Rf4+ {[%clk 0:00:26]}  Ke7 {[%clk 0:00:23]} 48. Re3+ {[%clk 0:00:26]}  Kf8 {[%clk 0:00:22]} 49. Ref3 {[%clk 0:00:26]}  Rb7 {[%clk 0:00:22]} 50. Kh2 {[%clk 0:00:26]}  Kg7 {[%clk 0:00:23]} 51. Kg3 {[%clk 0:00:26]}  Bd5 {[%clk 0:00:23]} 52. Rd3 {[%clk 0:00:26]}  Be6 {[%clk 0:00:22]} 53. Re3 {[%clk 0:00:24]}  Rb3 {[%clk 0:00:21]} 54. Rxb3 {[%clk 0:00:23]}  Bxb3 {[%clk 0:00:22]} 55. Kg4 {[%clk 0:00:24]}  Bc2 {[%clk 0:00:22]} 56. Kg5 {[%clk 0:00:24]}  Bf5 {[%clk 0:00:21]} 57. h5 {[%clk 0:00:23]}  Bb1 {[%clk 0:00:20]} 58. h6+ {[%clk 0:00:21]}  Kg8 {[%clk 0:00:17]} 59. Rb4 {[%clk 0:00:20]}  Kf8 {[%clk 0:00:17]} 60. Rxb1 {[%clk 0:00:20]} 1-0


[Site "https://www.chess.com"]

[Event "Titled Tuesday Blitz January 31 Early 2023"]
[White "Papayan, Oleg"]
[Black "Martinez, Shawn"]
[WhiteFideId "4193911"]
[BlackFideId "2039770"]
[WhiteElo "2253"]
[BlackElo "1881"]
[Result "1/2-1/2"]
[Round "06"]
[TimeControl "180+2"]
[Date "2023.01.31"]
[WhiteClock "0:00:05"]
[BlackClock "0:00:20"]

1. d4 {[%clk 0:02:55]}  Nf6 {[%clk 0:02:55]} 2. Nf3 {[%clk 0:02:55]}  g6 {[%clk 0:02:55]} 3. Nc3 {[%clk 0:02:50]}  Bg7 {[%clk 0:02:55]} 4. e4 {[%clk 0:02:51]}  d6 {[%clk 0:02:56]} 5. h3 {[%clk 0:02:49]}  a6 {[%clk 0:02:54]} 6. a4 {[%clk 0:02:48]}  Nc6 {[%clk 0:02:55]} 7. d5 {[%clk 0:02:48]}  Ne5 {[%clk 0:02:52]} 8. Nxe5 {[%clk 0:02:48]}  dxe5 {[%clk 0:02:53]} 9. Bc4 {[%clk 0:02:41]}  O-O {[%clk 0:02:52]} 10. O-O {[%clk 0:02:41]}  Ne8 {[%clk 0:02:39]} 11. Be3 {[%clk 0:02:39]}  Nd6 {[%clk 0:02:39]} 12. Ba2 {[%clk 0:02:38]}  f5 {[%clk 0:02:39]} 13. f3 {[%clk 0:02:26]}  Kh8 {[%clk 0:02:31]} 14. a5 {[%clk 0:02:04]}  f4 {[%clk 0:02:29]} 15. Bf2 {[%clk 0:02:04]}  g5 {[%clk 0:02:29]} 16. Na4 {[%clk 0:01:58]}  h5 {[%clk 0:02:24]} 17. c4 {[%clk 0:01:58]}  Rf6 {[%clk 0:02:22]} 18. c5 {[%clk 0:01:58]}  Nf7 {[%clk 0:02:22]} 19. c6 {[%clk 0:01:46]}  Nd6 {[%clk 0:02:16]} 20. cxb7 {[%clk 0:01:23]}  Nxb7 {[%clk 0:02:09]} 21. b4 {[%clk 0:00:57]}  Rg6 {[%clk 0:02:04]} 22. Bc5 {[%clk 0:00:38]}  g4 {[%clk 0:02:00]} 23. hxg4 {[%clk 0:00:39]}  hxg4 {[%clk 0:02:00]} 24. Kf2 {[%clk 0:00:40]}  Nd6 {[%clk 0:01:55]} 25. Rh1+ {[%clk 0:00:39]}  Kg8 {[%clk 0:01:55]} 26. Rh5 {[%clk 0:00:29]}  Bd7 {[%clk 0:01:53]} 27. Nb2 {[%clk 0:00:23]}  Qe8 {[%clk 0:01:44]} 28. Nd3 {[%clk 0:00:17]}  gxf3 {[%clk 0:01:38]} 29. gxf3 {[%clk 0:00:18]}  Rg3 {[%clk 0:01:36]} 30. Qh1 {[%clk 0:00:16]}  Nxe4+ {[%clk 0:01:27]} 31. fxe4 {[%clk 0:00:13]}  Rxd3 {[%clk 0:01:27]} 32. d6+ {[%clk 0:00:13]}  e6 {[%clk 0:01:26]} 33. Rh8+ {[%clk 0:00:03]}  Bxh8 {[%clk 0:01:21]} 34. Rg1+ {[%clk 0:00:03]}  Rg3 {[%clk 0:01:16]} 35. Rxg3+ {[%clk 0:00:01]}  fxg3+ {[%clk 0:01:17]} 36. Kxg3 {[%clk 0:00:01]}  Qg6+ {[%clk 0:01:16]} 37. Kf3 {[%clk 0:00:01]}  Rf8+ {[%clk 0:01:15]} 38. Ke2 {[%clk 0:00:01]}  Bb5+ {[%clk 0:01:13]} 39. Kd2 {[%clk 0:00:01]}  Rf2+ {[%clk 0:01:13]} 40. Bxf2 {[%clk 0:00:02]}  cxd6 {[%clk 0:01:11]} 41. Qg1 {[%clk 0:00:02]}  Kf7 {[%clk 0:00:49]} 42. Qxg6+ {[%clk 0:00:02]}  Kxg6 {[%clk 0:00:49]} 43. Bxe6 {[%clk 0:00:02]}  Bf6 {[%clk 0:00:47]} 44. Bf5+ {[%clk 0:00:03]}  Kf7 {[%clk 0:00:42]} 45. Kc3 {[%clk 0:00:02]}  Ke7 {[%clk 0:00:40]} 46. Bb6 {[%clk 0:00:02]}  Bh4 {[%clk 0:00:39]} 47. Bg4 {[%clk 0:00:01]}  Be1+ {[%clk 0:00:39]} 48. Kb3 {[%clk 0:00:02]}  Bd3 {[%clk 0:00:29]} 49. Bc8 {[%clk 0:00:02]}  Bxe4 {[%clk 0:00:27]} 50. Bxa6 {[%clk 0:00:02]}  d5 {[%clk 0:00:26]} 51. Bc5+ {[%clk 0:00:02]}  Ke6 {[%clk 0:00:27]} 52. b5 {[%clk 0:00:03]}  d4 {[%clk 0:00:26]} 53. b6 {[%clk 0:00:03]}  Bd5+ {[%clk 0:00:26]} 54. Bc4 {[%clk 0:00:03]}  Bxa5 {[%clk 0:00:21]} 55. b7 {[%clk 0:00:03]}  Bc7 {[%clk 0:00:21]} 56. Ba7 {[%clk 0:00:02]}  e4 {[%clk 0:00:17]} 57. Bxd5+ {[%clk 0:00:01]}  Kxd5 {[%clk 0:00:18]} 58. b8=Q {[%clk 0:00:02]}  Bxb8 {[%clk 0:00:18]} 59. Bxb8 {[%clk 0:00:03]}  e3 {[%clk 0:00:18]} 60. Ba7 {[%clk 0:00:03]}  Ke4 {[%clk 0:00:19]} 61. Kc2 {[%clk 0:00:03]}  d3+ {[%clk 0:00:19]} 62. Kd1 {[%clk 0:00:04]}  Kf3 {[%clk 0:00:19]} 63. Bxe3 {[%clk 0:00:04]}  Kxe3 {[%clk 0:00:20]} 64. Ke1 {[%clk 0:00:04]}  d2+ {[%clk 0:00:20]} 65. Kd1 {[%clk 0:00:05]}  Kd3 {[%clk 0:00:20]} 1/2-1/2


[Site "https://www.chess.com"]

[Event "Titled Tuesday Blitz January 31 Early 2023"]
[White "Schut, Han"]
[Black "Kleiman, Jake"]
[WhiteFideId "1005561"]
[BlackFideId "2020041"]
[WhiteElo "2101"]
[BlackElo "2399"]
[Result "0-1"]
[Round "06"]
[TimeControl "180+2"]
[Date "2023.01.31"]
[WhiteClock "0:00:10"]
[BlackClock "0:00:46"]

1. e4 {[%clk 0:03:00]}  Nf6 {[%clk 0:02:57]} 2. e5 {[%clk 0:03:00]}  Nd5 {[%clk 0:02:57]} 3. d4 {[%clk 0:03:01]}  d6 {[%clk 0:02:57]} 4. Nf3 {[%clk 0:03:02]}  dxe5 {[%clk 0:02:55]} 5. Nxe5 {[%clk 0:03:01]}  c6 {[%clk 0:02:55]} 6. Be2 {[%clk 0:02:53]}  g6 {[%clk 0:02:55]} 7. O-O {[%clk 0:02:49]}  Bg7 {[%clk 0:02:55]} 8. c4 {[%clk 0:02:45]}  Nc7 {[%clk 0:02:55]} 9. Nf3 {[%clk 0:02:38]}  O-O {[%clk 0:02:54]} 10. Nc3 {[%clk 0:02:35]}  Bg4 {[%clk 0:02:53]} 11. Be3 {[%clk 0:02:34]}  Nd7 {[%clk 0:02:52]} 12. h3 {[%clk 0:02:30]}  Bxf3 {[%clk 0:02:49]} 13. Bxf3 {[%clk 0:02:31]}  f5 {[%clk 0:02:35]} 14. Qd2 {[%clk 0:02:23]}  e5 {[%clk 0:02:32]} 15. dxe5 {[%clk 0:02:19]}  Nxe5 {[%clk 0:02:32]} 16. Be2 {[%clk 0:02:12]}  Qxd2 {[%clk 0:02:25]} 17. Bxd2 {[%clk 0:02:13]}  Ne6 {[%clk 0:02:20]} 18. Rfe1 {[%clk 0:01:58]}  Nd4 {[%clk 0:02:19]} 19. Rac1 {[%clk 0:01:45]}  Nxe2+ {[%clk 0:02:12]} 20. Rxe2 {[%clk 0:01:44]}  Nxc4 {[%clk 0:02:11]} 21. Bf4 {[%clk 0:01:07]}  Rfe8 {[%clk 0:01:59]} 22. b3 {[%clk 0:00:52]}  Nb6 {[%clk 0:01:49]} 23. Be3 {[%clk 0:00:42]}  Bxc3 {[%clk 0:01:41]} 24. Rxc3 {[%clk 0:00:39]}  f4 {[%clk 0:01:36]} 25. Bxb6 {[%clk 0:00:34]}  Rxe2 {[%clk 0:01:35]} 26. Bc5 {[%clk 0:00:35]}  Rxa2 {[%clk 0:01:33]} 27. Rd3 {[%clk 0:00:33]}  b6 {[%clk 0:01:32]} 28. Be7 {[%clk 0:00:23]}  Re2 {[%clk 0:01:28]} 29. Bg5 {[%clk 0:00:22]}  Re4 {[%clk 0:01:12]} 30. Rd7 {[%clk 0:00:22]}  a5 {[%clk 0:01:05]} 31. Bf6 {[%clk 0:00:21]}  Re6 {[%clk 0:01:03]} 32. Bb2 {[%clk 0:00:19]}  h5 {[%clk 0:00:57]} 33. Rg7+ {[%clk 0:00:18]}  Kf8 {[%clk 0:00:56]} 34. Rh7 {[%clk 0:00:19]}  Rd8 {[%clk 0:00:50]} 35. Rb7 {[%clk 0:00:14]}  c5 {[%clk 0:00:50]} 36. Rh7 {[%clk 0:00:11]}  Rd2 {[%clk 0:00:48]} 37. Bc3 {[%clk 0:00:10]}  Rd3 {[%clk 0:00:46]} 0-1


[Site "https://www.chess.com"]

[Event "Titled Tuesday Blitz January 31 Early 2023"]
[White "Koridze, Lile"]
[Black "Seresin, Francesco"]
[WhiteFideId "13612514"]
[BlackFideId "886335"]
[WhiteElo "2191"]
[BlackElo "2348"]
[Result "0-1"]
[Round "06"]
[TimeControl "180+2"]
[Date "2023.01.31"]
[WhiteClock "0:00:42"]
[BlackClock "0:01:00"]

1. d4 {[%clk 0:03:00]}  d5 {[%clk 0:02:53]} 2. c4 {[%clk 0:03:01]}  e6 {[%clk 0:02:51]} 3. Nf3 {[%clk 0:03:00]}  Nf6 {[%clk 0:02:39]} 4. g3 {[%clk 0:03:00]}  Bb4+ {[%clk 0:02:38]} 5. Bd2 {[%clk 0:02:59]}  Be7 {[%clk 0:02:39]} 6. Bg2 {[%clk 0:03:00]}  O-O {[%clk 0:02:25]} 7. O-O {[%clk 0:03:00]}  c6 {[%clk 0:02:26]} 8. Nc3 {[%clk 0:02:57]}  b6 {[%clk 0:02:26]} 9. Qc2 {[%clk 0:02:55]}  Ba6 {[%clk 0:02:26]} 10. b3 {[%clk 0:02:56]}  Nbd7 {[%clk 0:02:26]} 11. Bf4 {[%clk 0:02:55]}  h6 {[%clk 0:02:25]} 12. e4 {[%clk 0:02:55]}  dxc4 {[%clk 0:02:21]} 13. bxc4 {[%clk 0:02:51]}  Bxc4 {[%clk 0:02:21]} 14. Rfe1 {[%clk 0:02:48]}  Ba6 {[%clk 0:02:19]} 15. Rad1 {[%clk 0:02:46]}  Bb7 {[%clk 0:02:17]} 16. Qb3 {[%clk 0:02:42]}  Re8 {[%clk 0:02:15]} 17. d5 {[%clk 0:02:39]}  cxd5 {[%clk 0:02:08]} 18. exd5 {[%clk 0:02:37]}  Nxd5 {[%clk 0:02:07]} 19. Be5 {[%clk 0:02:25]}  Nc5 {[%clk 0:01:50]} 20. Qb2 {[%clk 0:02:21]}  Bf6 {[%clk 0:01:49]} 21. Nxd5 {[%clk 0:02:19]}  Bxd5 {[%clk 0:01:50]} 22. Bd4 {[%clk 0:02:08]}  Bxd4 {[%clk 0:01:48]} 23. Rxd4 {[%clk 0:02:07]}  Qf6 {[%clk 0:01:46]} 24. Qd2 {[%clk 0:02:02]}  Rad8 {[%clk 0:01:44]} 25. Rd1 {[%clk 0:02:00]}  Rd7 {[%clk 0:01:31]} 26. Qe3 {[%clk 0:01:50]}  Red8 {[%clk 0:01:28]} 27. Ne5 {[%clk 0:01:49]}  Rd6 {[%clk 0:01:21]} 28. h4 {[%clk 0:01:42]}  Qe7 {[%clk 0:01:17]} 29. Ng6 {[%clk 0:01:22]}  Qc7 {[%clk 0:01:03]} 30. Bxd5 {[%clk 0:00:41]}  Rxd5 {[%clk 0:01:02]} 31. Nf4 {[%clk 0:00:41]}  Rxd4 {[%clk 0:01:00]} 32. Rxd4 {[%clk 0:00:41]}  Rxd4 {[%clk 0:01:00]} 33. Qxd4 {[%clk 0:00:42]}  e5 {[%clk 0:01:00]} 0-1


[Site "https://www.chess.com"]

[Event "Titled Tuesday Blitz January 31 Early 2023"]
[White "Zaichenko, Daria"]
[Black "Fernandez Garcia, Gumersindo"]
[WhiteFideId "4197453"]
[BlackFideId "24516740"]
[WhiteElo "2104"]
[BlackElo "2160"]
[Result "0-1"]
[Round "06"]
[TimeControl "180+2"]
[Date "2023.01.31"]
[WhiteClock "0:00:46"]
[BlackClock "0:00:23"]

1. e4 {[%clk 0:02:56]}  c5 {[%clk 0:02:58]} 2. Nf3 {[%clk 0:02:55]}  d6 {[%clk 0:02:59]} 3. d4 {[%clk 0:02:54]}  cxd4 {[%clk 0:03:00]} 4. Nxd4 {[%clk 0:02:55]}  Nf6 {[%clk 0:03:00]} 5. Nc3 {[%clk 0:02:55]}  a6 {[%clk 0:02:59]} 6. Be2 {[%clk 0:02:54]}  e5 {[%clk 0:02:55]} 7. Nb3 {[%clk 0:02:53]}  Be7 {[%clk 0:02:55]} 8. O-O {[%clk 0:02:51]}  O-O {[%clk 0:02:55]} 9. a4 {[%clk 0:02:50]}  Be6 {[%clk 0:02:51]} 10. a5 {[%clk 0:02:48]}  Nc6 {[%clk 0:02:48]} 11. Be3 {[%clk 0:02:47]}  d5 {[%clk 0:02:36]} 12. Bb6 {[%clk 0:02:39]}  Qd7 {[%clk 0:02:20]} 13. exd5 {[%clk 0:02:36]}  Nxd5 {[%clk 0:02:18]} 14. Nxd5 {[%clk 0:02:36]}  Qxd5 {[%clk 0:02:07]} 15. Qxd5 {[%clk 0:02:34]}  Bxd5 {[%clk 0:02:08]} 16. c4 {[%clk 0:02:31]}  Be6 {[%clk 0:02:05]} 17. Nd2 {[%clk 0:02:30]}  Bd8 {[%clk 0:02:01]} 18. Bc5 {[%clk 0:02:28]}  Be7 {[%clk 0:01:59]} 19. Bxe7 {[%clk 0:02:24]}  Nxe7 {[%clk 0:01:58]} 20. b4 {[%clk 0:02:24]}  Rac8 {[%clk 0:01:52]} 21. Rfe1 {[%clk 0:02:19]}  Nc6 {[%clk 0:01:51]} 22. Rab1 {[%clk 0:02:19]}  Nd4 {[%clk 0:01:49]} 23. Bd3 {[%clk 0:02:18]}  f6 {[%clk 0:01:47]} 24. Re4 {[%clk 0:02:09]}  Rfd8 {[%clk 0:01:46]} 25. Re3 {[%clk 0:02:01]}  g6 {[%clk 0:01:28]} 26. Be4 {[%clk 0:01:59]}  Nc6 {[%clk 0:01:23]} 27. Nb3 {[%clk 0:01:48]}  Bxc4 {[%clk 0:01:14]} 28. Nc5 {[%clk 0:01:48]}  Nxb4 {[%clk 0:01:13]} 29. Nxb7 {[%clk 0:01:43]}  Rd4 {[%clk 0:01:07]} 30. f3 {[%clk 0:01:39]}  Nd5 {[%clk 0:01:01]} 31. Ree1 {[%clk 0:01:38]}  Nc3 {[%clk 0:01:00]} 32. Rbc1 {[%clk 0:01:28]}  Nxe4 {[%clk 0:00:58]} 33. Rxe4 {[%clk 0:01:25]}  Rxe4 {[%clk 0:00:53]} 34. fxe4 {[%clk 0:01:25]}  Be6 {[%clk 0:00:52]} 35. Rxc8+ {[%clk 0:01:21]}  Bxc8 {[%clk 0:00:53]} 36. Nd6 {[%clk 0:01:19]}  Bd7 {[%clk 0:00:51]} 37. Kf2 {[%clk 0:01:17]}  Kf8 {[%clk 0:00:51]} 38. Ke3 {[%clk 0:01:17]}  Ke7 {[%clk 0:00:51]} 39. Nc4 {[%clk 0:01:17]}  Bb5 {[%clk 0:00:51]} 40. Nb6 {[%clk 0:01:16]}  Kd6 {[%clk 0:00:51]} 41. Nd5 {[%clk 0:01:17]}  f5 {[%clk 0:00:49]} 42. Nf6 {[%clk 0:01:17]}  h6 {[%clk 0:00:45]} 43. exf5 {[%clk 0:01:15]}  gxf5 {[%clk 0:00:45]} 44. Ng8 {[%clk 0:01:15]}  f4+ {[%clk 0:00:42]} 45. Kf3 {[%clk 0:01:12]}  Bc6+ {[%clk 0:00:42]} 46. Kf2 {[%clk 0:01:12]}  h5 {[%clk 0:00:37]} 47. h4 {[%clk 0:01:12]}  Ke6 {[%clk 0:00:35]} 48. Nh6 {[%clk 0:01:02]}  Be4 {[%clk 0:00:33]} 49. g4 {[%clk 0:01:00]}  fxg3+ {[%clk 0:00:29]} 50. Kxg3 {[%clk 0:01:01]}  Kf6 {[%clk 0:00:29]} 51. Kf2 {[%clk 0:00:56]}  Kg7 {[%clk 0:00:23]} 52. Ke3 {[%clk 0:00:55]}  Bg6 {[%clk 0:00:23]} 53. Ng8 {[%clk 0:00:46]}  Kxg8 {[%clk 0:00:23]} 0-1


[Site "https://www.chess.com"]

[Event "Titled Tuesday Blitz January 31 Early 2023"]
[White "Begunov, Konstantin"]
[Black "Martin, Lewis"]
[WhiteFideId "4118510"]
[BlackFideId "410551"]
[WhiteElo "2325"]
[BlackElo "2135"]
[Result "0-1"]
[Round "06"]
[TimeControl "180+2"]
[Date "2023.01.31"]
[WhiteClock "0:00:29"]
[BlackClock "0:00:48"]

1. d4 {[%clk 0:02:48]}  d5 {[%clk 0:02:59]} 2. c4 {[%clk 0:02:48]}  c6 {[%clk 0:02:58]} 3. Nc3 {[%clk 0:02:49]}  dxc4 {[%clk 0:02:57]} 4. e4 {[%clk 0:02:48]}  e5 {[%clk 0:02:54]} 5. dxe5 {[%clk 0:02:47]}  Qxd1+ {[%clk 0:02:53]} 6. Kxd1 {[%clk 0:02:46]}  b5 {[%clk 0:02:52]} 7. a4 {[%clk 0:02:42]}  b4 {[%clk 0:02:51]} 8. Na2 {[%clk 0:02:37]}  Ba6 {[%clk 0:02:41]} 9. Bd2 {[%clk 0:02:22]}  c5 {[%clk 0:02:34]} 10. Nc1 {[%clk 0:02:01]}  Nc6 {[%clk 0:02:32]} 11. f4 {[%clk 0:01:57]}  f6 {[%clk 0:02:23]} 12. e6 {[%clk 0:01:45]}  f5 {[%clk 0:02:18]} 13. exf5 {[%clk 0:01:42]}  Nh6 {[%clk 0:02:18]} 14. b3 {[%clk 0:01:42]}  Nxf5 {[%clk 0:02:03]} 15. Bxc4 {[%clk 0:01:25]}  Bxc4 {[%clk 0:02:03]} 16. bxc4 {[%clk 0:01:26]}  O-O-O {[%clk 0:02:03]} 17. Nb3 {[%clk 0:01:17]}  Ne3+ {[%clk 0:02:00]} 18. Ke2 {[%clk 0:01:17]}  Nxc4 {[%clk 0:01:59]} 19. Nf3 {[%clk 0:01:14]}  g6 {[%clk 0:01:54]} 20. Rac1 {[%clk 0:01:12]}  Nxd2 {[%clk 0:01:49]} 21. Nfxd2 {[%clk 0:01:11]}  Rd5 {[%clk 0:01:46]} 22. Ne4 {[%clk 0:01:05]}  Be7 {[%clk 0:01:41]} 23. Nbxc5 {[%clk 0:01:01]}  Re8 {[%clk 0:01:38]} 24. Rhd1 {[%clk 0:00:50]}  Rxd1 {[%clk 0:01:12]} 25. Rxd1 {[%clk 0:00:50]}  Kc7 {[%clk 0:01:00]} 26. g4 {[%clk 0:00:49]}  Bxc5 {[%clk 0:00:54]} 27. Nxc5 {[%clk 0:00:48]}  Kb6 {[%clk 0:00:54]} 28. Rd6 {[%clk 0:00:36]}  Kxc5 {[%clk 0:00:53]} 29. Rd7 {[%clk 0:00:34]}  Rxe6+ {[%clk 0:00:52]} 30. Kd3 {[%clk 0:00:35]}  Rd6+ {[%clk 0:00:51]} 31. Rxd6 {[%clk 0:00:34]}  Kxd6 {[%clk 0:00:52]} 32. Kc4 {[%clk 0:00:30]}  a5 {[%clk 0:00:51]} 33. f5 {[%clk 0:00:29]}  Ne5+ {[%clk 0:00:49]} 34. Kb5 {[%clk 0:00:29]}  b3 {[%clk 0:00:48]} 0-1


[Site "https://www.chess.com"]